Cogmind - Beta 14 @@@ ROGUE MODE // 2025.01.01 @ 17:33:44 Player: Willow Result: Self-destructed Performance ------------- Evolutions (2) 1000 Regions Visited (5) 1000 Robots Destroyed (70) 350 Value Destroyed (1557) 1557 Prototype IDs (34) 680 Alien Tech Used (0) 0 Bonus (481) 481 TOTAL SCORE: 5068 Bonus ------- High Alert Combat Kills 22 Follower Combat Kills 159 Aligned with FarCom 300 Cogmind --------- Core Integrity 384/550 Matter 290/300 Energy 18/100 System Corruption 0% Temperature Cool (0) Movement Treading (250) Ox1 Location -8/Materials Parts ------- > --- POWER (1) -------- (None) > --- PROPULSION (4) --- Armored Treads Armored Treads Armored Treads Armored Treads > --- UTILITY (4) ------ Improved Heat Sink Large Storage Unit Improved Targeting Computer Reflective Plating > --- WEAPON (2) ------- YOLO Cannon > --- INVENTORY (15) --- Advanced Treads Improved Hover Unit Improved Hover Unit Improved Hover Unit Combat Airjet Combat Airjet Compact Battery (200) High-capacity Matter Pod (200) Experimental Sensor Array Improved Signal Interpreter Improved Targeting Computer Pulse Rifle Minigun Peak State ------------ > --- POWER ------------ Light Nuclear Core > --- PROPULSION ------- Armored Treads Armored Treads Armored Treads Armored Treads > --- UTILITY ---------- Improved Heat Sink Large Storage Unit Improved Targeting Computer Improved Power Shielding > --- WEAPON ----------- YOLO Cannon > --- INVENTORY -------- Advanced Treads Improved Hover Unit Improved Hover Unit Combat Airjet Combat Airjet Compact Battery High-capacity Matter Pod Experimental Sensor Array Improved Signal Interpreter Improved Targeting Computer Pulse Rifle Minigun [Rating: 48] Favorites ----------- Power Light Ion Engine Engine Light Ion Engine Power Core Light Nuclear Core Propulsion Armored Treads Treads Armored Treads Leg Aluminum Leg Hover Unit Combat Airjet Utility Large Storage Unit Device Seismic Detector Storage Large Storage Unit Processor Signal Interpreter Protection Improved Light Armor Plating Weapon Heavy Assault Rifle Energy Gun Advanced Beam Rifle Energy Cannon YOLO Cannon Ballistic Gun Heavy Assault Rifle Ballistic Cannon Assault Cannon Launcher Grenade Launcher Special Melee Weapon Datajack Build | -11 -10 -10 -10 -9 -8 ------- Run | Yrd Mat Min Exi Min Mat Slots Evolved 4 | . . . . . 4 Power . | . . . . . . Propulsion 2 | . . . . . 2 Utility 2 | . . . . . 2 Weapon . | . . . . . . Parts Attached 103 | 7 13 29 5 10 39 Power 10 | 1 1 5 . 1 2 Engine 9 | 1 1 5 . 1 1 Core 1 | . . . . . 1 Reactor . | . . . . . . Propulsion 24 | 2 6 5 . 4 7 Treads 18 | . 6 5 . 2 5 Leg 2 | 2 . . . . . Wheel . | . . . . . . Hover 4 | . . . . 2 2 Flight . | . . . . . . Utility 20 | 2 4 5 2 1 6 Device 5 | 1 . 2 1 . 1 Storage 4 | 1 2 . 1 . . Processor 6 | . 2 1 . 1 2 Hackware . | . . . . . . Protection 5 | . . 2 . . 3 Artifact . | . . . . . . Weapon 49 | 2 2 14 3 4 24 Energy Gun 11 | 1 . . . . 10 Energy Cannon 9 | . . . 1 . 8 Ballistic Gun 15 | 1 2 8 2 1 1 Ballistic Cannon 2 | . . . . . 2 Launcher 9 | . . 4 . 2 3 Special Weapon . | . . . . . . Impact Weapon . | . . . . . . Slashing Weapon . | . . . . . . Piercing Weapon . | . . . . . . Special Melee Weapon 3 | . . 2 . 1 . Unidentified Prototypes 5 | . . . 2 . 3 Parts Lost 17 | . . 13 . . 4 Power 5 | . . 3 . . 2 Propulsion 6 | . . 5 . . 1 Utility 3 | . . 2 . . 1 Weapon 3 | . . 3 . . . Highest Loss Streak 7 | . . 7 . . 1 To Critical Strikes . | . . . . . . Average Slot Usage (%) 94 | . 99 98 82 100 91 Engine 10 | . 14 14 14 14 3 Core 1 | . . . . . 4 Treads 30 | . 26 27 28 27 35 Device 5 | . 6 5 3 13 1 Storage 12 | . 14 14 14 14 9 Processor 7 | . 7 . 9 . 15 Protection 4 | . . 7 . . 8 Energy Gun 2 | . 4 . . . 6 Ballistic Gun 11 | . 22 19 11 13 . Launcher 3 | . . 6 . 9 . Special Melee Weapon 1 | . . 1 . 5 . Peak Build Rating 48 | 7 12 15 27 18 48 Average Rating 18 | 5 10 11 9 12 34 On Entrance 9 | . 7 12 11 12 13 Naked Turns . | . . . . . . Heaviest Build 46 | 13 34 38 27 29 46 Greatest Support 83 | 20 46 46 43 43 83 Greatest Overweight (x) 3 | 3 . . . 1 . Average Overweight (x) . | . . . . . . Largest Inventory Capacity 15 | 8 15 15 15 15 15 Average Capacity 14 | 7 14 15 15 15 15 Most Carried 15 | 4 15 15 15 15 15 Average Carried 12 | 3 10 12 14 14 12 Final Capacity 15 | 8 15 15 15 15 15 Final Carried 15 | 4 15 15 15 15 13 Class Distribution -------------------- 94% | Mutant 5% | Scavenger-Mutant Dominant Class ---------------- Mutant | -10/Materials Mutant | -10/Mines Mutant | -10/Exiles Mutant | -9/Mines Mutant | -8/Materials Resources | -11 -10 -10 -10 -9 -8 ----------- Run | Yrd Mat Min Exi Min Mat Matter Collected 2177 | 292 360 777 . 304 444 Remotely . | . . . . . . Salvage Created 2123 | 176 189 509 . 212 1037 Parts 128 | 19 11 22 . 23 53 Haulers Intercepted 3 | . 1 . . . 2 Recyclers Shooed 4 | 1 . 1 . . 2 Parts Field Recycled . | . . . . . . Retrieved Matter . | . . . . . . Parts Self-Destructed . | . . . . . . Prevented . | . . . . . . Kills | -11 -10 -10 -10 -9 -8 ------- Run | Yrd Mat Min Exi Min Mat Combat Hostiles Destroyed 58 | . 3 23 . 10 22 Melee 1 | . . . . . 1 Guns 16 | . 3 8 . 2 3 Cannons 5 | . . . . . 5 AOE 33 | . . 15 . 8 10 Classes Destroyed 12 | 3 2 2 . 1 4 Worker 9 | 2 2 3 . 1 1 Builder 1 | . . . . . 1 Tunneler 4 | 4 . . . . . Hauler 3 | . 1 . . . 2 Recycler 9 | 1 . 3 . 1 4 Mechanic 1 | . . . . . 1 Watcher 3 | . . . . . 3 Swarmer 16 | . . . . 8 8 Grunt 16 | . 3 4 . 2 7 Sentry 7 | . . . . . 7 Demolisher 1 | . . 1 . . . Assembled 18 | . . 18 . . . Best Kill Streak 9 | 4 2 9 . 4 7 Combat Bots Only 7 | . 2 7 . 4 5 Max Kills in Single Turn 4 | 1 1 3 . 3 4 Gunslinging . | . . . . . . Exploded 3 | . . 2 . 3 2 Melee 1 | . . . . . 1 Uniques/NPCs Destroyed . | . . . . . . Combat | -11 -10 -10 -10 -9 -8 -------- Run | Yrd Mat Min Exi Min Mat Hostile Shots Fired 292 | . 8 98 . 28 158 Missed 73 | . 2 18 . 11 42 Damage Taken 3725 | . 65 2133 . 172 1355 Core 367 | . 11 178 . 12 166 Absorbed by Shields . | . . . . . . Redirected to Shielding 20 | . . . . . 20 Ignored by Resistances 16 | . . . . . 16 Core Remaining (%) 59 | 100 . . . 19 . Volleys Fired 171 | 22 5 76 . 20 48 Largest 2 | 2 2 2 . 2 2 Hottest 124 | 60 46 53 . 40 124 Shots Fired 258 | 44 11 108 . 32 63 Gun 188 | 44 11 77 . 24 32 Cannon 29 | . . . . . 29 Launcher 41 | . . 31 . 8 2 Special . | . . . . . . Kinetic 151 | 22 11 77 . 24 17 Thermal 66 | 22 . . . . 44 Explosive 41 | . . 31 . 8 2 Electromagnetic . | . . . . . . Robot Hit Streak 12 | 11 5 9 . 12 11 Robot Miss Streak 4 | 3 1 3 . 2 4 Penetration Max . | . . . . . . Secondary Targets 1 | . . . . . 1 Max Gunslinging Chain 1 | . . . . . 1 Shots Hit Robots 156 | 29 8 57 . 18 44 Core Hits 123 | 10 8 56 . 20 29 Critical Kills 3 | . . . . . 3 Critical Parts Destroyed 1 | 1 . . . . . Critical Strikes 5 | 1 . . . . 4 Burn 1 | . . . . . 1 Meltdown 3 | . . . . . 3 Destroy 1 | 1 . . . . . Melee Attacks 4 | . . 3 . 1 . Impact . | . . . . . . Slashing . | . . . . . . Piercing . | . . . . . . Sneak Attacks 4 | . . 3 . 1 . Combat Hostiles . | . . . . . . Follow-up Attacks . | . . . . . . Damage Inflicted 6433 | 290 153 1823 . 581 3586 Guns 1721 | 290 140 667 . 176 448 Cannons 1352 | . . . . . 1352 Explosions 3299 | . . 1135 . 405 1759 Melee . | . . . . . . Ramming 61 | . 13 21 . . 27 Kinetic 1332 | 101 140 667 . 176 248 Thermal 3295 | 189 . . . . 3106 Explosive 1745 | . . 1135 . 405 205 Electromagnetic . | . . . . . . Impact . | . . . . . . Slashing . | . . . . . . Piercing . | . . . . . . Highest Corruption 1 | . 1 1 1 1 . Average Corruption 1 | . 1 1 1 1 . Corruption Purged . | . . . . . . Corruption Blocked . | . . . . . . Effects 22 | . 1 12 3 6 . Message Errors 3 | . . 3 . . . Matter Fused 6 | . . 3 . 3 . Heat Flow Errors 4 | . . 2 1 1 . Parts Fused 1 | . . . 1 . . Data Loss (minor) 3 | . . 2 1 . . Data Loss (major) 2 | . . 1 . 1 . Misfires 1 | . 1 . . . . Alerts 1 | . . . . 1 . Weapon Failures 1 | . . 1 . . . Overload Shots . | . . . . . . Overflow Damage 495 | . . 15 . 3 477 Projectiles 288 | . . . . . 288 Explosions 207 | . . 15 . 3 189 Melee . | . . . . . . Knockbacks 2 | . . . . . 2 Impact . | . . . . . . Kinetic 2 | . . . . . 2 Secondary . | . . . . . . Self-Inflicted Damage 168 | . . 130 . . 38 Shots 6 | . . 5 . . 1 Rammed 12 | . 2 3 . . 7 Targets Rammed 15 | . 3 3 . . 9 Kicked . | . . . . . . Crushed 3 | . 1 . . . 2 Highest Temperature 264 | 40 2 130 115 264 163 Average Temperature 32 | 24 2 20 59 106 36 Received Heat Transfer 666 | . 36 213 . 48 369 Siege Activations . | . . . . . . Robots Corrupted . | . . . . . . Combat Hostiles . | . . . . . . Parts Fried . | . . . . . . Impact Corruptions . | . . . . . . Robots Melted 3 | . . . . . 3 Combat Hostiles 3 | . . . . . 3 Parts Melted 7 | . . . . . 7 Heat Transferred 3666 | 425 . . . . 3241 Parts Sabotaged . | . . . . . . Parts Stolen . | . . . . . . Parts Stripped . | . . . . . . Power Chain Reactions . | . . . . . . Alert | -11 -10 -10 -10 -9 -8 ------- Run | Yrd Mat Min Exi Min Mat Peak Influence 601 | 35 167 122 . 161 601 Initial 37 | . 22 . . . 37 Average 126 | 13 64 24 . 47 286 Maximum Alert Level 2 | . . . . . 2 Low Security (%) 75 | 100 100 100 . 100 30 Level 1 18 | . . . . . 50 Level 2 6 | . . . . . 18 Level 3 . | . . . . . . Level 4 . | . . . . . . Level 5 . | . . . . . . High Security . | . . . . . . Max Security . | . . . . . . Squads Dispatched 9 | . 3 . . . 6 Investigation 5 | . 2 . . . 3 Extermination . | . . . . . . Reinforcement 2 | . 1 . . . 1 Assault 1 | . . . . . 1 Garrison 1 | . . . . . 1 Intercept . | . . . . . . Searches Triggered . | . . . . . . Construction Impeded . | . . . . . . Haulers Reinforced . | . . . . . . Active Scanning Responses . | . . . . . . Cargo Convoy Interrupts . | . . . . . . Stealth | -11 -10 -10 -10 -9 -8 --------- Run | Yrd Mat Min Exi Min Mat Distress Signals 1 | . . . . . 1 Communications Jammed . | . . . . . . Distress Signals . | . . . . . . Times Spotted 73 | . 6 23 . 13 31 Peak Tracking Total 5 | . 3 4 . 4 5 Tactical Retreats 2 | . 1 . . . 1 Traps | -11 -10 -10 -10 -9 -8 ------- Run | Yrd Mat Min Exi Min Mat Traps Triggered 3 | . 1 1 . . 1 Indirectly . | . . . . . . Trap Hack Attempts . | . . . . . . Triggered . | . . . . . . Disarmed . | . . . . . . Reprogrammed . | . . . . . . Reused . | . . . . . . Traps Extracted . | . . . . . . Installed . | . . . . . . Triggered . | . . . . . . Machines | -11 -10 -10 -10 -9 -8 ---------- Run | Yrd Mat Min Exi Min Mat Machines Disabled 6 | . . 2 . . 4 Max in Single Turn 1 | . . 1 . . 1 Garrison Access 1 | . . . . . 1 Machines Repaired . | . . . . . . Machines Dismantled . | . . . . . . Machines Sabotaged . | . . . . . . Overloaded Fab Kills . | . . . . . . Hacking | -11 -10 -10 -10 -9 -8 --------- Run | Yrd Mat Min Exi Min Mat Machines Accessed 18 | . 4 1 5 . 8 Terminals 10 | . 4 . . . 6 Fabricators . | . . . . . . Repair Stations . | . . . . . . Recycling Units 2 | . . . . . 2 Scanalyzers . | . . . . . . Garrison Access . | . . . . . . Total Hacks 88 | . 12 1 50 . 25 Successful 74 | . 9 1 50 . 14 Failed 14 | . 3 . . . 11 Catastrophic . | . . . . . . Database Lockouts . | . . . . . . Manual 35 | . 11 . 1 . 23 Terminals 31 | . 12 . . . 19 Fabricators . | . . . . . . Repair Stations . | . . . . . . Recycling Units 6 | . . . . . 6 Scanalyzers . | . . . . . . Garrison Access . | . . . . . . Terminal Hacks 58 | . 3 1 50 . 4 Record 49 | . . . 49 . . Robot Analysis 3 | . 3 . . . . Open Door 1 | . . 1 . . . Terminal Index 1 | . . . . . 1 Alert Level 1 | . . . . . 1 Unreport Threat 2 | . . . . . 2 Derelict Proto ID Bank 1 | . . . 1 . . Fabricator Hacks . | . . . . . . Repair Station Hacks . | . . . . . . Recycling Unit Hacks 2 | . . . . . 2 Report Inventory 2 | . . . . . 2 Scanalyzer . | . . . . . . Garrison Access Hacks . | . . . . . . Unauthorized Hacks 14 | . 6 . . . 8 Terminals 12 | . 6 . . . 6 Track 1 | . 1 . . . . Botnet 9 | . 4 . . . 5 Operators 2 | . 1 . . . 1 Fabricators . | . . . . . . Repair Stations . | . . . . . . Recycling Units 2 | . . . . . 2 Tunnel 2 | . . . . . 2 Scanalyzers . | . . . . . . Garrison Access . | . . . . . . Data Cores Recovered . | . . . . . . Used . | . . . . . . Hacking Detections 10 | . 2 . . . 8 Full Trace Events 1 | . 1 . . . . Feedback Events . | . . . . . . Feedback Blocked . | . . . . . . Robot Schematics Acquired . | . . . . . . Robots Built . | . . . . . . Authchips . | . . . . . . Time . | . . . . . . Total Robot Build Rating . | . . . . . . Part Schematics Acquired . | . . . . . . Parts Built . | . . . . . . Authchips . | . . . . . . Time . | . . . . . . Total Part Build Rating . | . . . . . . Parts Repaired . | . . . . . . Time . | . . . . . . Parts Recycled . | . . . . . . Recycled Matter . | . . . . . . Retrieved Matter . | . . . . . . Retrieved Components . | . . . . . . Parts Scanalyzed . | . . . . . . Part Schematics Acquired . | . . . . . . Parts Damaged . | . . . . . . Bothacking | -11 -10 -10 -10 -9 -8 ------------ Run | Yrd Mat Min Exi Min Mat Used RIF Installer . | . . . . . . Robots Hacked 2 | . . 2 . . . Non-combat 1 | . . 1 . . . Combat 1 | . . 1 . . . Robot Hacks Applied 2 | . . 2 . . . parse_system 2 | . . 2 . . . Relay Couplers Released 2 | . . . . . 2 Machine Destruction 2 | . . . . . 2 Fabnet Peak Effective % . | . . . . . . Robots Rewired . | . . . . . . Allies Hacked . | . . . . . . Hacks Repelled . | . . . . . . Allies | -11 -10 -10 -10 -9 -8 -------- Run | Yrd Mat Min Exi Min Mat Total Allies 6 | . . 2 . 4 . Largest Group 4 | . . 2 . 4 4 Highest-Rated Group 71 | . . 42 . 71 71 Highest-Rated Ally 31 | . . 31 . 31 31 Total Orders . | . . . . . . Ally Attacks 41 | . . 1 . 10 30 Total Damage 522 | . . 21 . 105 396 Kills 7 | . . . . 3 4 Allies Corrupted . | . . . . . . Allies Melted . | . . . . . . Intel | -11 -10 -10 -10 -9 -8 ------- Run | Yrd Mat Min Exi Min Mat Robot Analysis Total 3 | . 3 . . . . Derelict Logs Recovered 4 | . . 2 . 2 . Drone Launches . | . . . . . . Drone Recoveries . | . . . . . . Exploration | -11 -10 -10 -10 -9 -8 ------------- Run | Yrd Mat Min Exi Min Mat Turns Passed 5364 | 146 426 1439 747 957 1649 Spaces Moved 2762 | 60 229 743 461 541 728 Core 19 | 19 . . . . . Treads 2678 | . 214 743 461 540 720 Legs 56 | 41 15 . . . . Wheels . | . . . . . . Hover 9 | . . . . 1 8 Flight . | . . . . . . Fastest Speed 50 | 50 120 160 160 147 117 Average Speed 161 | 118 157 160 160 160 168 Slowest Speed 240 | 200 160 160 160 240 170 Overloaded Moves . | . . . . . . Propulsion Burnouts . | . . . . . . Robots Hopped . | . . . . . . Cave-ins Triggered . | . . . . . . Exploration Rate (%) 62 | 4 34 96 89 99 52 Regions Visited 5 Branch Regions 3 Pre-discovered Areas 3 | . . . 1 . 2 Known Exits Taken 3 | . 1 1 . 1 . Unknown Exits Taken 2 | 1 . . 1 . . Scrap Searched 4 | . . 2 . 2 . Spaces Dug 29 | . . . . . 29 Terrain Destroyed 379 | . . 141 . 22 216 Melee . | . . . . . . Projectile 6 | . . . . . 6 AOE 373 | . . 141 . 22 210 Terrain Rammed . | . . . . . . Walls Destroyed . | . . . . . . Machines Disabled . | . . . . . . Actions | -11 -10 -10 -10 -9 -8 --------- Run | Yrd Mat Min Exi Min Mat Total 3374 | 92 281 876 472 601 1052 Wait 212 | . 9 3 . 19 181 Move 2758 | 59 229 742 460 540 728 Hop . | . . . . . . Pick Up 54 | 4 13 17 2 4 14 Fast Attach 31 | 7 3 . 2 2 17 Attach 35 | . . 14 3 2 16 Detach 11 | . 1 . . 2 8 Swap 37 | . 10 15 . 6 6 Drop 47 | . 9 3 5 5 25 Fire 171 | 22 5 76 . 20 48 Melee 4 | . . 3 . 1 . Ram . | . . . . . . Kick . | . . . . . . Crush 14 | . 2 3 . . 9 Escape Stasis . | . . . . . . Rewire . | . . . . . . Trap . | . . . . . . Miscellaneous . | . . . . . . Route ------- -11/Scrapyard -10/Materials (discovered 2 exits: *Mat / *Min) -10/Mines (discovered 3 exits: *Mat x2 / *Exi) -10/Exiles -9/Mines (discovered 2 exits: *Mat x2) -8/Materials (discovered 1 exit: Fac) History --------- Turn | Location | Event 5 | -11/Scrapyard | Discovered new exit (range 14) 147 | -11/Scrapyard | Entered Materials 244 | -10/Materials | Met 8R-AWN 328 | -10/Materials | Build established: Mutant 412 | -10/Materials | Discovered new exit (range 14) 440 | -10/Materials | Discovered new exit (range 7) 478 | -10/Materials | Identified exit to Mines 573 | -10/Materials | Entered Mines 575 | -10/Mines | Followed 8R-AWN into the Mines 621 | -10/Mines | Met a Derelict who couldn't figure out how to use a Trap Extractor 659 | -10/Mines | Discovered new exit (range 13) 741 | -10/Mines | Assembled infested the area 817 | -10/Mines | Lost 7 parts (2p3n1u1w) 916 | -10/Mines | Destroyed 7 combat bots 952 | -10/Mines | Core integrity fell below 50% 1334 | -10/Mines | Learned Materials terminal intel 1379 | -10/Mines | Identified exit to Materials 2002 | -10/Mines | Discovered new exit (range 5) 2011 | -10/Mines | Identified exit to Exiles 2012 | -10/Mines | Entered Exiles 2056 | -10/Exiles | Welcomed by 8R-AWN 2078 | -10/Exiles | Met EX-HEX 2141 | -10/Exiles | Met EX-DEC 2194 | -10/Exiles | Visited The Gauntlet 2391 | -10/Exiles | Learned location of Zion (-7) 2428 | -10/Exiles | Met EX-BIN 2455 | -10/Exiles | Aligned with FarCom system 2457 | -10/Exiles | Given EX-Vault access code 2522 | -10/Exiles | Opened EX-Vault 2531 | -10/Exiles | Found Prototype Storage 2531 | -10/Exiles | Identified Superbattery 2542 | -10/Exiles | Found Prototype Energy Cannon 2542 | -10/Exiles | Identified YOLO Cannon 2585 | -10/Exiles | Warned to stay clear of 0b10 Research branches 2743 | -10/Exiles | Discovered new exit (range 11) 2759 | -10/Exiles | Left Exiles lab with YOLO Cannon 2759 | -10/Exiles | Entered Mines 2827 | -9/Mines | A weapon hastily lodged in a ceiling crevice suddenly fell to the ground 2833 | -9/Mines | Met a Derelict bent on vengeance 2938 | -9/Mines | Discovered new exit (range 9) 2945 | -9/Mines | Core integrity fell below 20% 3104 | -9/Mines | Learned 8 Materials zone layouts 3157 | -9/Mines | Learned 2 Materials zone layouts 3380 | -9/Mines | Assisted by bots powering up and referring to "LRC-V3" 3434 | -9/Mines | Found a damaged Exp. Sensor Array with a note attached 3448 | -9/Mines | Found Prototype Device 3527 | -9/Mines | Received a Mining Laser from a helpful Derelict 3637 | -9/Mines | Discovered new exit (range 10) 3691 | -9/Mines | Identified exit to Materials 3716 | -9/Mines | Entered Materials 3716 | -8/Materials | Accompanied by 4 allies 3716 | -8/Materials | Evolved 4 slots: Propulsion x2, Utility x2 3717 | -8/Materials | Identified exit to Factory 3718 | -8/Materials | Loaded intel: 11 terminal locations 3835 | -8/Materials | Lost 3 allies 5016 | -8/Materials | Garrison activated, responded to threat 5365 | -8/Materials | Self-destructed Last Messages --------------- 05163_ Slammed into G-47 Trooper. 05170_ Crushed G-47 Trooper. 05170_ G-47 Trooper destroyed. 05249_ Connecting with Terminal... >>Alert(Purge) Purged threat record, alert level lowered. 05274_ Slammed into U-05 Engineer. 05279_ Destroyed Welding Torch. 05311_ Connecting with Terminal... >>Trojan(Botnet) Trojan loaded successfully. Testing... Terminal linked with 4 systems. Awaiting botnet instructions. 05353_ Triggered Alarm Trap. 05353_ An alarm sounds. 05353_ ALERT: Alarm triggered, dispatching investigation squad. 05358_ Dropped Adv. Beam Rifle. 05360_ Penetrated by Slug. Map ----- +----------------------------------------------------+ | ?# """ # #??# "#????????????? | | ?# # #??# [ #????????????? | | ?#####+#+## #######+###########????? | | ?????# ? | | ?????# ! | | ?##### ## ### #### ##########? | | ?# ## #?# #??# #????????? | | ?# ## #?# #??# #?????????# | | ?# ## #?# #??# ##????????# | | ?######### ###+#### # ????????# | | ?????????# %# # # ????????# | | ?????????# #! """ # # ????????# | | ########## # """ # + ????????# | | # # # Y""" # # ????????# | | # """ !# # # + ????????# | | # """ %# # """ # ##????????# | | # """ [=%+% + """ # ##????????# | | # [# # """ # ## """"" " | | # # # + ## """"" # | | # # #! """ # + """"" # | | # "T" # # """ ## ## """ # | | # """ # # """ ## ## # | | ########## # ## ## # | | ??# # ######### ## # | | ??#[! # #???????# ## # | | ??#!! Y/ [@#???????# ########### | | ??# # #???????# #?????????# | | ?## # #???????# #????????## | | ?# # ######### ########## | | ?######### | | ?????????# | | ?????????# | | ?????????# #################### | | ?????????# # ## #??##### | | ?????????# #"S ## #??????? | | ?######### #""" ## """#??????? | | ?#Y ; # "" ## """#????### | | ?## ; # ## """#???? # | | ??# ; # """ ## """#???# # | | ??# ;h # """ ## #??? # | | ??# "T" # # """ ## #??? # | | ??# # # ## #?## # | | ??######## ###+########+##???# # | | ?????# ######### | | ?????# < + | | ?????# ######### | | ????#####+############## #???## # | | ????# ## # ########## | | ????# ## """"" # # | | ????# """ ## """"" + + | +----------------------------------------------------+ Best States ------------- Heat Dissipation 45 Energy Generation 14 Energy Capacity 265 Matter Stores 300 Matter Capacity 300 Sight Range 16 Terrain Scan Density 10 Armor Coverage 150 Resistance: TH 10 Power Shielding 66 Evasion (%) 55 Targeting Accuracy 6 Recoil Reduction 4 Item Schematics ----------------- None Robot Schematics ------------------ None Fabricated ------------ Nothing Alien Tech Used ----------------- None Achievements -------------- None Challenges ------------ None Game ------ Seed GreatUltimateBox Manual? 0 Play Time 00:53:53 Cumulative 47.7 hours Start 2025.01.01 @ 16:40:12 End 2025.01.01 @ 17:33:44 Sessions 1 Manual Loads 0 Difficulty Rogue Special Mode None Game No. 36 Rogue 21 Adventurer 15 Explorer 0 Win Type - Total 0 Types 0/0/0/0/0/0/0/0/0 Lore% 31 Gallery% 32 Achievement% 32 Wizard Run 0 Options --------- Layout 1 ASCII 0 Keyboard 0 Movement Mouse Keybinds 0 Fullscreen 1 Font 24/Smallcaps Map View 50x35 Zoom Use 0% Tactical HUD 1 Map Filters NONE Filters NONE Steam 1 RUN: c7fd3e3a-0dd9-4f5f-b1c0-51541033b2f1